bitfinex-derivatives/quotes_ETHF0:USTF0_20260316
["timestamp","ask_amount","ask_price","bid_price","bid_amount"]
[1773698359158,7.24030913,2364.1,2362.9,4.9067371]
[1773698359662,7.24030913,2364.1,2362.6,13.95315116]
[1773698360062,7.24030913,2364.1,2362.7,4.75266818]
[1773698360260,7.24030913,2364.1,2362.0,2.005039]
[1773698360261,7.24030913,2364.0,2362.4,7.35515116]
[1773698360758,7.24030913,2364.0,2362.5,0.10339004]
[1773698360958,7.24030913,2364.0,2362.4,7.35515116]
[1773698361663,7.24030913,2364.0,2362.1,7.35515116]
[1773698362057,7.24030913,2364.0,2362.2,4.45283256]
[1773698362459,4.232,2364.0,2362.2,4.45283256]
[1773698362662,7.54718335,2363.8,2362.2,4.45283256]
[1773698362963,7.54718335,2363.8,2361.9,7.53755924]
[1773698363366,7.54718335,2363.5,2361.9,7.53755924]
[1773698363567,7.54718335,2363.3,2361.9,0.00470029]
[1773698364566,7.54718335,2363.3,2361.5,7.53285895]
[1773698364970,7.54718335,2363.3,2361.6,4.85027577]
[1773698365467,7.54718335,2363.3,2361.6,0.00485794]
[1773698366085,7.54718335,2363.0,2361.6,0.00485794]
[1773698366962,7.54718335,2362.8,2360.5,7.53285895]
[1773698367163,7.54718335,2362.6,2360.5,7.53285895]
[1773698367364,7.54718335,2362.6,2360.9,7.53285895]
[1773698367762,7.54718335,2362.6,2361.0,4.61109491]
[1773698367959,7.54718335,2362.6,2361.0,12.14869072]
[1773698368163,7.54718335,2362.6,2361.1,7.53285895]
[1773698368569,7.54718335,2362.6,2361.0,0.00473686]
[1773698368771,7.54718335,2362.6,2361.0,7.53759581]
[1773698369172,7.54718335,2362.4,2361.0,7.53759581]
[1773698369470,7.55129395,2362.4,2361.0,7.53759581]
[1773698371362,7.54718335,2362.2,2361.0,7.53759581]
[1773698371567,7.54718335,2362.0,2361.1,4.60758724]
[1773698371769,7.54718335,2362.0,2361.2,7.53285895]
[1773698372169,7.54718335,2362.3,2361.2,7.53285895]
[1773698372366,7.671,2362.2,2361.2,7.53285895]
[1773698373068,0.0041106,2362.4,2361.4,7.53285895]
[1773698373471,0.0041106,2362.4,2361.6,7.53285895]
[1773698374471,7.54718335,2362.6,2361.6,7.53285895]
[1773698375473,7.55188026,2362.6,2361.6,7.53285895]
[1773698377172,7.55188026,2362.6,2361.1,17.042019]
[1773698377173,7.55188026,2362.6,2361.8,7.53285895]
[1773698377572,7.55188026,2362.6,2361.5,7.53285895]
[1773698379876,7.55188026,2362.6,2361.7,7.53285895]
[1773698380871,7.55188026,2362.6,2361.8,4.89381071]
[1773698381073,7.55188026,2362.6,2361.9,7.53285895]
[1773698384477,7.55188026,2362.6,2361.4,7.53285895]
[1773698384881,7.55188026,2362.6,2361.5,4.58081492]
[1773698385078,7.55188026,2362.6,2361.6,7.53285895]
[1773698390387,7.54718335,2362.4,2361.6,7.53285895]
[1773698391082,5.84064531,2362.3,2361.1,7.53285895]
[1773698391285,7.54718335,2362.2,2361.1,7.53285895]
[1773698391587,7.54718335,2362.0,2361.1,7.53285895]
[1773698393388,5.84416131,2361.9,2361.1,7.53285895]
[1773698393581,7.65532788,2361.8,2361.1,7.53285895]
[1773698394182,7.65532788,2361.8,2361.0,0.00473686]
[1773698394382,7.65532788,2361.6,2361.0,0.00473686]
[1773698394584,15.34432788,2361.6,2361.0,0.00473686]
[1773698394784,7.65532788,2361.5,2361.0,0.00473686]
[1773698394984,7.65532788,2361.5,2360.9,7.61660514]
[1773698395188,7.65532788,2361.5,2360.9,7.59106982]
[1773698395880,7.65532788,2361.5,2360.9,5.24887866]
[1773698396080,7.65532788,2361.5,2360.9,0.00445847]
[1773698396582,7.65532788,2361.5,2360.7,7.55156949]
[1773698396992,7.689,2361.6,2360.8,4.90410429]
[1773698397191,7.54387136,2361.5,2360.9,7.55156949]
[1773698397487,7.54387136,2361.5,2360.9,0.00313014]
[1773698400395,7.54387136,2361.3,2360.9,0.00313014]
[1773698400589,7.54387136,2361.1,2360.9,0.00313014]
[1773698400993,7.54387136,2361.1,2360.2,7.55156949]
[1773698401187,7.54387136,2361.1,2359.7,7.55156949]
[1773698401391,7.54387136,2360.9,2359.7,7.55156949]
[1773698401589,7.54387136,2360.7,2359.1,7.55156949]
[1773698401794,7.54387136,2360.5,2359.1,7.55156949]
[1773698401998,7.54387136,2360.3,2359.1,7.55662308]
[1773698402194,7.54387136,2360.3,2359.2,4.5591452]
[1773698402388,7.54387136,2360.3,2359.2,7.55156949]
[1773698402592,7.54387136,2360.1,2359.2,7.55156949]
[1773698403399,7.54387136,2360.0,2359.2,7.55156949]
[1773698404198,0.0053961,2360.5,2359.1,0.00505359]
[1773698404199,7.8093961,2360.5,2359.4,7.55156949]
[1773698404397,0.0053961,2360.5,2359.4,14.27756949]
[1773698404700,15.40687136,2361.0,2359.9,7.55156949]
[1773698404900,7.54387136,2361.0,2359.9,7.55156949]
[1773698405101,15.41887136,2361.2,2360.1,7.55156949]
[1773698405500,7.54387136,2361.2,2360.3,7.55156949]
[1773698405797,7.54387136,2361.2,2360.5,7.55156949]
[1773698405798,0.00549513,2361.2,2360.5,7.55156949]
[1773698406102,7.54387136,2361.4,2360.5,7.76336949]
[1773698406299,7.963,2361.6,2360.5,7.76336949]
[1773698406502,15.50687136,2361.6,2360.5,7.76336949]
[1773698406700,7.54387136,2361.5,2360.5,7.76336949]
[1773698407203,3.53886129,2362.3,2361.1,7.55156949]
[1773698407204,7.54387136,2362.0,2361.1,7.55156949]
[1773698407399,0.21622662,2362.1,2361.3,7.55156949]
[1773698407604,7.54387136,2362.7,2361.7,7.55156949]
[1773698408005,7.54387136,2363.1,2361.9,7.55156949]
[1773698408202,7.54387136,2363.6,2362.1,7.55156949]
[1773698408401,7.54387136,2363.6,2362.3,7.55156949]
[1773698408711,7.54387136,2363.6,2362.5,7.55156949]
[1773698409106,7.54387136,2363.6,2362.7,7.55156949]
[1773698409306,7.547933,2363.6,2362.7,7.55156949]
[1773698410200,7.547933,2363.6,2362.3,7.55156949]
[1773698410405,7.547933,2363.6,2361.9,7.55499256]
[1773698410604,7.54387136,2363.4,2362.0,12.29311241]
[1773698411106,7.54387136,2363.2,2361.9,0.00342307]
[1773698411306,7.54387136,2363.0,2361.9,0.00342307]
[1773698411606,7.54387136,2362.8,2361.9,7.55499256]
[1773698412199,7.54387136,2362.8,2361.9,0.00342307]
[1773698413105,7.54387136,2362.8,2361.5,7.55156949]
[1773698413407,7.54387136,2362.8,2360.9,0.21177]
[1773698413408,7.54387136,2362.8,2361.1,7.55156949]
[1773698413804,7.54387136,2362.8,2361.2,12.14329365]
[1773698414303,7.54387136,2362.6,2361.2,7.55610508]
[1773698416505,7.54387136,2362.5,2361.3,4.88419349]
[1773698416705,7.54387136,2362.5,2361.4,7.55156949]
[1773698418007,3.53886129,2363.3,2361.4,7.55156949]
[1773698418008,7.54387136,2363.0,2361.4,7.76328949]
[1773698418208,7.54387136,2363.0,2361.8,7.55156949]
[1773698418611,7.54387136,2363.0,2361.9,4.59638362]
[1773698418807,7.54387136,2363.0,2362.0,7.55156949]
[1773698423517,7.54387136,2363.0,2361.2,7.24878446]
[1773698423815,7.56869609,2362.8,2361.2,7.24878446]
[1773698424212,5.8165379,2362.7,2361.2,7.24878446]
[1773698424410,7.56869609,2362.6,2361.2,0.00453559]
[1773698425116,7.56869609,2362.4,2361.2,0.00453559]
[1773698426007,7.56869609,2362.4,2360.7,7.24424887]
[1773698427021,7.56869609,2362.4,2360.7,7.24919835]
[1773698427415,5.81850641,2362.3,2360.7,7.24919835]
[1773698427614,7.56869609,2362.2,2360.7,7.24919835]
[1773698429414,7.56869609,2362.1,2360.9,7.45600887]
[1773698429616,16.63769609,2362.1,2360.9,7.45600887]
[1773698429820,7.56869609,2362.4,2361.1,7.24424887]
[1773698430020,7.56869609,2362.3,2361.1,7.24424887]
[1773698431318,7.56869609,2362.9,2361.3,7.24424887]
[1773698431530,7.56869609,2362.7,2361.3,7.24424887]
[1773698434122,7.56869609,2362.5,2360.8,7.24424887]
[1773698434323,7.56869609,2362.3,2360.8,7.24424887]
[1773698434526,7.56869609,2362.1,2360.9,7.24424887]
[1773698434823,7.56869609,2361.9,2360.7,7.24919835]
[1773698435019,7.56869609,2361.7,2360.7,7.24919835]
[1773698439116,7.57237681,2361.9,2360.7,7.24919835]
[1773698439325,7.56869609,2361.7,2360.7,7.24919835]
[1773698440617,9.199,2361.8,2360.9,7.24424887]
[1773698440819,5.99172149,2361.7,2360.9,7.24424887]
[1773698441019,5.99172149,2361.7,2361.0,4.48626496]
[1773698441228,5.99172149,2361.7,2361.1,7.24424887]
[1773698441527,9.199,2361.8,2361.1,7.24424887]
[1773698441722,0.00368072,2361.9,2361.1,7.24424887]
[1773698448326,7.56869609,2362.2,2361.3,7.24424887]
[1773698448736,9.29,2362.3,2361.5,7.24424887]
[1773698449032,8.91549859,2362.3,2361.5,7.24424887]
[1773698449232,5.99565672,2362.2,2361.5,7.24424887]
[1773698449533,8.91949087,2362.3,2361.5,7.24424887]
[1773698449923,0.00399228,2362.3,2361.7,7.24424887]
[1773698450124,5.99565672,2362.5,2361.7,7.24424887]
[1773698450329,16.86369609,2362.8,2361.7,7.24424887]
[1773698450532,13.56476137,2362.7,2361.7,7.24424887]
[1773698450730,13.56476137,2362.6,2361.7,7.24424887]
[1773698450931,7.56869609,2362.6,2361.7,7.24424887]
[1773698451130,7.57284508,2362.6,2361.7,7.24424887]
[1773698452729,0.00414899,2362.6,2361.9,7.25745133]
[1773698454024,3.53886129,2363.3,2362.1,7.25745133]
[1773698454025,6.89291103,2363.1,2362.1,7.25745133]
[1773698454226,12.8906335,2363.0,2362.1,7.25745133]
[1773698454427,6.89291103,2363.0,2362.1,7.25745133]
[1773698455237,6.89741916,2363.0,2362.1,7.25745133]
[1773698457138,6.89741916,2363.0,2361.6,6.89124496]
[1773698457533,6.89741916,2363.0,2361.7,7.10294496]
[1773698458035,6.89741916,2363.0,2361.9,6.89124496]
[1773698458531,0.00450813,2363.0,2362.1,7.10290496]
[1773698459236,7.45367657,2363.3,2362.5,6.89124496]
[1773698460439,7.45782381,2363.3,2362.5,6.89496762]
[1773698460850,6.7411717,2363.8,2363.1,6.89124496]
[1773698461034,6.7411717,2363.8,2362.7,6.89124496]
[1773698461741,6.74509746,2363.8,2362.7,6.89124496]
[1773698464442,6.74509746,2363.8,2362.1,6.89124496]
[1773698464646,7.45367657,2363.6,2362.1,6.89124496]
[1773698464847,7.45367657,2363.4,2362.1,6.89124496]
[1773698465048,7.45367657,2363.2,2362.1,6.89124496]
[1773698465546,7.45367657,2363.2,2362.1,6.89544569]
[1773698469161,0.00392576,2363.8,2362.8,6.89124496]
[1773698469448,0.00392576,2363.8,2363.0,6.89124496]
[1773698470348,7.45367657,2364.3,2363.0,6.89124496]
[1773698471253,7.45367657,2364.3,2363.1,0.21157]
[1773698471447,7.4580026,2364.3,2363.2,6.89124496]
[1773698474353,7.4580026,2364.3,2363.4,6.89124496]
[1773698483857,0.00432603,2364.3,2363.6,7.1901358]
[1773698485250,7.31628177,2365.4,2363.0,7.77]
[1773698485251,5.2924707,2366.2,2364.6,1.76485912]
[1773698485468,7.46822005,2366.7,2365.5,0.07311229]
[1773698485960,7.46822005,2366.7,2365.7,0.07311229]
[1773698486459,7.47238595,2366.7,2365.7,0.07746546]
[1773698486661,7.43971255,2366.5,2365.7,0.07746546]
[1773698487060,7.43971255,2366.2,2365.5,0.37336808]
[1773698488256,7.43971255,2366.2,2365.5,0.37639015]
[1773698488462,7.43971255,2366.2,2364.7,2.21940984]
[1773698488463,7.43971255,2366.1,2364.7,0.21142]
[1773698488760,7.43971255,2366.1,2364.9,2.1040546]
[1773698488960,0.0041659,2366.7,2364.9,2.1040546]
[1773698488961,7.43971255,2365.9,2364.9,2.1040546]
[1773698489464,7.43971255,2365.7,2364.9,2.10798678]
[1773698491564,7.43971255,2365.6,2364.9,2.10798678]
[1773698491760,7.43971255,2365.6,2364.7,2.09598364]
[1773698492265,7.43971255,2365.4,2364.7,2.09598364]
[1773698492763,7.43971255,2365.4,2364.7,2.1006588]
[1773698492961,7.43971255,2366.1,2364.9,2.0738003]
[1773698493564,7.43971255,2365.9,2364.9,2.0738003]
[1773698493957,7.43971255,2365.8,2364.9,2.0738003]
[1773698494166,7.43971255,2365.8,2364.7,2.06789794]
[1773698494367,7.43971255,2365.6,2364.7,0.00467516]
[1773698494862,7.43971255,2365.5,2364.7,0.00467516]
[1773698495565,9.125,2366.2,2364.7,0.00467516]
[1773698495566,7.43971255,2365.3,2364.7,0.00467516]
[1773698496063,7.43971255,2365.1,2364.2,2.10100156]
[1773698496564,7.43971255,2365.1,2364.1,4.6248174]
[1773698496869,7.43971255,2365.1,2364.2,4.6248174]
[1773698497163,7.43971255,2365.1,2364.2,6.77347129]
[1773698497365,7.43971255,2365.0,2364.2,2.14865389]
[1773698497568,7.4429451,2365.0,2364.2,2.14865389]
[1773698497869,14.12943148,2365.0,2364.2,2.14865389]
[1773698498065,7.43971255,2364.9,2364.2,0.00322751]
[1773698499175,7.43971255,2364.9,2363.8,2.48546185]
[1773698499465,7.43971255,2364.6,2363.8,2.48546185]
[1773698499662,0.00323255,2365.0,2364.0,2.47241841]
[1773698499663,7.43971255,2364.8,2364.0,2.47241841]
[1773698500265,7.43971255,2364.8,2364.0,2.47612131]
[1773698501864,7.4429451,2365.0,2364.2,2.48729856]
[1773698502865,9.065,2366.0,2364.0,0.2151929]
[1773698502866,7.43971255,2365.2,2364.4,2.47029244]
[1773698503662,0.00501208,2365.2,2364.4,2.47029244]
[1773698504673,7.43971255,2365.4,2364.6,2.41262675]
[1773698505474,14.12619893,2365.4,2364.6,2.41262675]
[1773698505774,7.44291353,2365.4,2364.6,2.41262675]
[1773698505975,7.43971255,2365.6,2364.6,2.41262675]
[1773698506178,7.43971255,2365.6,2364.8,2.35524861]
[1773698506671,7.43971255,2365.6,2365.0,2.35173611]
[1773698507175,14.12921795,2365.6,2365.0,2.35173611]
[1773698507474,14.12619893,2365.5,2365.0,2.35173611]
[1773698507670,7.43971255,2365.5,2365.0,2.35173611]
[1773698507976,6.68648638,2365.4,2364.8,2.33655359]
[1773698508174,7.43971255,2365.5,2364.8,2.33655359]
[1773698508375,7.43971255,2365.5,2364.9,2.32209927]
[1773698508570,14.12619893,2365.5,2364.9,2.32209927]
[1773698508775,7.43971255,2365.4,2364.3,2.42952579]
[1773698509177,7.43971255,2365.4,2364.8,4.86748743]
[1773698509475,7.43971255,2365.3,2364.6,2.42952579]
[1773698509975,6.68648638,2365.1,2364.7,7.12436337]
[1773698510170,7.43971255,2365.1,2364.7,7.12436337]
[1773698510370,7.43971255,2365.1,2364.7,2.415539]
[1773698510571,6.68648638,2365.0,2364.8,4.85693944]
[1773698510971,6.68648638,2364.9,2364.8,4.85693944]
[1773698511169,7.43971255,2365.1,2364.8,4.85693944]
[1773698511371,7.44273157,2365.6,2364.9,2.51531528]
[1773698511978,6.68648638,2365.4,2364.9,2.51531528]
[1773698512483,6.68648638,2365.3,2364.9,2.51531528]
[1773698512778,7.44273157,2365.6,2364.9,2.51531528]
[1773698512978,6.68648638,2365.4,2364.9,2.51531528]
[1773698513186,7.44273157,2365.6,2364.9,2.51531528]
[1773698513574,4.18483142,2365.3,2364.9,2.51531528]
[1773698513778,0.00301902,2365.6,2365.0,4.89170907]
[1773698514071,8.25054319,2366.0,2365.0,4.89170907]
[1773698514277,8.25054319,2365.8,2365.0,4.89170907]
[1773698514777,4.1493558,2365.7,2365.0,4.89170907]
[1773698515080,4.1493558,2365.7,2365.1,0.14639789]
[1773698515278,4.1493558,2365.6,2365.1,0.14639789]
[1773698515478,8.25350291,2365.8,2365.2,4.45940145]
[1773698515671,4.1493558,2365.6,2365.2,4.45940145]
[1773698515876,4.1493558,2365.6,2365.1,4.45940145]
[1773698516075,8.32448259,2366.8,2365.2,0.21138]
[1773698516379,8.32448259,2366.8,2365.5,0.01613064]
[1773698516577,8.32448259,2366.8,2365.4,0.21137]
[1773698516978,8.32955574,2366.8,2365.3,7.58613064]
[1773698517379,8.32955574,2366.8,2365.4,4.40350205]
[1773698517983,8.34201888,2366.6,2365.1,0.22546829]
[1773698518385,8.34201888,2366.6,2365.2,4.60038623]
[1773698519286,8.34201888,2366.6,2364.9,0.39557988]
[1773698519487,8.34872237,2366.4,2365.0,0.18122014]
[1773698519784,8.34872237,2366.4,2365.1,0.18122014]
[1773698520184,8.34872237,2366.4,2365.2,4.44123028]
[1773698520684,8.34872237,2366.4,2365.1,0.18122014]
[1773698520885,8.34872237,2366.4,2364.4,0.23114481]
[1773698521084,8.34872237,2366.4,2364.3,0.21146]
[1773698521085,8.34872237,2366.4,2364.7,0.23114481]
[1773698521590,8.34872237,2366.4,2364.8,4.78069359]
[1773698521985,8.34872237,2366.4,2364.8,0.20266314]
[1773698523087,8.30628224,2366.2,2364.8,0.20266314]
[1773698523888,8.30628224,2366.2,2364.5,0.24835802]
[1773698524287,8.30628224,2366.2,2364.7,0.23326843]
[1773698524686,8.30628224,2366.2,2364.8,4.51156756]
[1773698525988,8.30628224,2366.2,2364.8,4.75468866]
[1773698527388,5.08806524,2366.1,2364.8,4.75468866]
[1773698527686,8.26727675,2366.0,2364.8,4.51156756]
[1773698527885,8.26727675,2366.0,2364.4,0.2231728]
[1773698528289,8.26727675,2365.8,2364.4,4.71892997]
[1773698528980,8.26727675,2365.8,2364.4,4.8891008]
[1773698530091,8.26727675,2365.8,2364.2,0.15477972]
[1773698530290,8.28662413,2365.6,2364.2,0.15477972]
[1773698530492,8.28662413,2365.6,2364.3,0.41663296]
[1773698530886,8.28662413,2365.6,2364.5,0.41663296]
[1773698532090,8.28662413,2365.6,2364.9,0.39516962]
[1773698533390,8.28662413,2365.6,2364.8,0.21142]
[1773698533789,8.28662413,2365.6,2364.4,0.36153722]
[1773698534195,8.28662413,2365.6,2364.6,0.34697604]
[1773698535592,18.64355591,2366.4,2364.0,8.68915841]
[1773698535593,7.49600815,2365.4,2364.0,0.0037029]
[1773698535786,12.60799064,2365.3,2364.0,0.0037029]
[1773698535990,12.60814373,2365.2,2364.0,0.0037029]
[1773698536183,7.49600815,2365.1,2364.0,0.0037029]
[1773698536384,7.50070385,2365.1,2364.0,0.0037029]
[1773698538996,7.50070385,2365.1,2363.7,4.06655732]
[1773698539899,7.50070385,2365.1,2363.7,4.07195165]
[1773698543090,7.50070385,2365.1,2363.7,0.00539433]
[1773698544002,7.95017873,2364.9,2363.7,0.00539433]
[1773698544199,7.95017873,2364.9,2363.1,3.97261407]
[1773698544402,7.95017873,2364.7,2363.1,3.97261407]
[1773698544702,7.95017873,2364.5,2362.9,3.96834031]
[1773698544897,7.95017873,2364.5,2362.8,4.89580352]
[1773698544898,7.95017873,2364.3,2362.7,3.96834031]
[1773698545093,7.95017873,2364.1,2362.7,3.96834031]
[1773698545295,7.95017873,2364.0,2362.7,3.97273071]
[1773698545791,7.95017873,2364.0,2362.7,4.18433071]
[1773698545993,0.27046967,2364.1,2362.9,4.19324636]
[1773698546200,0.27046967,2364.1,2363.4,3.96725878]
[1773698546499,7.95017873,2364.3,2363.4,3.96725878]
[1773698548102,7.95017873,2364.3,2362.9,3.93143451]
[1773698548400,7.95017873,2364.3,2363.0,3.87813267]
[1773698550595,7.95017873,2364.3,2363.2,3.8471212]
[1773698551001,7.95017873,2364.3,2363.4,3.8471212]
[1773698551401,7.95017873,2365.0,2363.6,3.83260582]
[1773698551599,0.0046957,2365.1,2364.0,3.83203647]
[1773698551904,5.29759551,2366.3,2364.0,3.83203647]
[1773698551905,7.95017873,2366.3,2364.7,8.45719]
[1773698552200,7.95017873,2366.3,2365.0,3.83203647]
[1773698552403,7.95017873,2366.3,2365.1,3.82360842]
[1773698552602,7.95017873,2366.3,2365.2,3.82360842]
[1773698553002,7.95404273,2366.3,2365.2,3.82863431]
[1773698554704,7.95404273,2366.3,2365.4,3.76531259]
[1773698558303,7.95404273,2366.3,2365.2,0.00502589]
[1773698558508,7.95404273,2366.3,2364.6,3.70676752]
[1773698558708,7.95404273,2366.3,2364.2,3.70878696]
[1773698559009,7.95017873,2366.1,2364.4,4.85414583]
[1773698559309,0.07745444,2366.3,2364.0,3.70878696]
[1773698559310,7.95017873,2365.9,2364.0,3.70878696]
[1773698559507,7.95017873,2365.9,2363.8,7.384]
[1773698559508,7.95017873,2365.9,2364.5,3.83680525]
[1773698561512,7.95017873,2365.9,2364.4,0.0041963]
[1773698564617,7.95017873,2365.7,2364.4,0.0041963]
[1773698564914,7.95017873,2365.6,2364.4,0.0041963]
[1773698565116,7.95017873,2365.6,2363.9,3.99631495]
[1773698565709,7.95017873,2365.6,2364.1,3.97946985]
[1773698565910,7.95017873,2365.6,2364.3,3.97946985]
[1773698566109,7.95017873,2365.6,2364.5,3.97946985]
[1773698566305,7.95017873,2365.6,2364.7,3.9659955]
[1773698569116,7.95017873,2366.2,2364.7,3.9659955]
[1773698569317,7.95017873,2366.2,2364.4,3.90037735]
[1773698569515,7.95017873,2366.0,2364.3,0.00533378]
[1773698569718,7.95017873,2365.8,2364.3,0.00533378]
[1773698569919,7.95017873,2365.8,2364.3,3.90475593]
[1773698570820,7.95017873,2365.8,2364.5,4.08634242]
[1773698572823,7.95017873,2365.8,2364.7,3.83265746]
[1773698574223,7.95017873,2365.8,2364.4,3.81724894]
[1773698574625,7.95017873,2365.8,2364.5,3.81498969]
[1773698575233,7.95017873,2365.8,2364.3,0.00533378]
[1773698575528,7.95017873,2365.8,2364.3,3.80698412]
[1773698575826,7.40640031,2365.6,2364.3,0.00533378]
[1773698576331,7.40640031,2365.6,2364.4,3.78443712]
[1773698576532,7.40640031,2365.6,2364.4,8.4842691]
[1773698576727,7.40640031,2365.6,2364.5,3.76455977]
[1773698577632,7.40640031,2365.6,2364.7,3.75995531]
[1773698581030,7.40640031,2365.6,2364.3,0.00533378]
[1773698581333,5.29759551,2366.2,2364.3,0.00533378]
[1773698581334,7.68559117,2365.8,2364.5,3.67958856]
[1773698581732,7.68559117,2365.8,2364.7,3.66685982]
[1773698582036,7.68559117,2365.8,2364.9,3.66685982]
[1773698584539,7.68559117,2365.8,2364.5,3.46647571]
[1773698586228,7.68559117,2365.8,2364.7,3.44335794]
[1773698592130,7.68559117,2365.8,2364.4,2.71182122]
[1773698593537,7.68559117,2365.6,2364.4,0.21145]
[1773698593740,7.68559117,2365.4,2364.4,0.21145]
[1773698593938,7.68559117,2365.4,2364.4,2.6965308]
[1773698594542,7.68559117,2365.4,2364.6,2.47225336]
[1773698594739,7.68559117,2365.4,2364.8,2.47225336]
[1773698595841,7.68559117,2365.4,2364.4,2.45940999]
[1773698596239,7.68559117,2365.4,2364.5,2.44701359]
[1773698597542,7.68559117,2365.4,2364.4,0.21145]
[1773698597742,7.68559117,2365.4,2364.4,2.48456108]
[1773698598041,7.68559117,2365.4,2364.5,2.27311108]
[1773698600245,7.68559117,2365.4,2364.7,1.90583717]
[1773698602141,7.68559117,2365.4,2364.6,2.07976863]
[1773698602347,7.68559117,2365.4,2364.3,0.00533378]
[1773698603236,16.32259117,2365.4,2364.3,0.00533378]
[1773698603435,7.84886582,2365.3,2364.3,0.00533378]
[1773698604747,7.84886582,2365.1,2364.3,0.00533378]
[1773698606243,7.84886582,2365.1,2363.8,1.69448478]
[1773698606649,5.34700167,2365.0,2363.8,1.69448478]
[1773698606849,5.34700167,2365.0,2363.6,0.42441544]
[1773698606850,7.84886582,2364.9,2363.6,1.89894347]
[1773698607046,7.84886582,2364.9,2363.6,1.90339737]
[1773698607247,7.84886582,2364.9,2363.7,6.56502016]
[1773698608051,7.84886582,2364.9,2363.6,0.2159739]
[1773698608252,7.84886582,2364.9,2363.6,1.87944679]
[1773698614060,7.84886582,2365.2,2364.3,1.15861558]
[1773698614659,7.84886582,2365.2,2363.8,1.10648636]
[1773698615051,7.84886582,2365.2,2363.9,1.10648636]
[1773698618760,7.84886582,2365.2,2364.0,0.21149]
[1773698618966,7.84886582,2365.2,2364.3,1.10939214]
[1773698619259,7.84886582,2365.2,2364.5,1.09794841]
[1773698620256,7.84886582,2365.2,2364.4,0.21145]
[1773698620461,7.84886582,2365.2,2364.4,1.28856977]
[1773698626270,7.84886582,2365.2,2364.4,0.21145]
[1773698626666,7.84886582,2365.2,2364.0,0.98213626]
[1773698627066,7.84886582,2365.2,2364.2,4.65817262]
[1773698627269,7.84886582,2365.0,2364.1,0.98213626]
[1773698629971,7.84886582,2365.0,2364.0,1.46789623]
[1773698630369,7.84886582,2365.0,2364.0,6.08206319]
[1773698630776,7.84886582,2365.0,2364.1,1.4523704]
[1773698634276,7.84886582,2365.0,2364.0,1.41185147]
[1773698634477,7.84886582,2365.0,2363.9,0.21149]
[1773698635372,7.84886582,2365.0,2363.8,1.41185147]
[1773698638173,7.84886582,2365.0,2363.5,0.21258715]
[1773698638174,7.84886582,2365.0,2363.6,1.41161123]
[1773698638580,7.31175509,2364.8,2363.6,0.0044539]
[1773698639280,5.35686168,2364.7,2362.9,1.62927773]
[1773698639483,7.31175509,2364.6,2362.7,1.62559584]
[1773698639675,7.31175509,2364.4,2362.7,1.62559584]
[1773698639875,7.31175509,2364.2,2362.7,1.62559584]
[1773698640077,7.31175509,2364.2,2362.7,1.41769773]
[1773698640384,7.31663597,2364.2,2362.7,1.42231182]
[1773698640974,7.58658874,2364.2,2362.7,1.42231182]
[1773698641181,7.31663597,2364.2,2362.7,1.42231182]
[1773698641478,7.31663597,2364.2,2362.8,1.60780322]
[1773698641679,7.31175509,2364.6,2363.5,1.39620322]
[1773698641884,7.31175509,2364.6,2363.7,1.39620322]
[1773698642686,7.31628032,2364.6,2363.7,1.39620322]
[1773698644286,7.31628032,2364.6,2363.9,1.65626511]
[1773698648290,7.31628032,2364.6,2363.9,1.76268511]
[1773698651788,7.31175509,2365.5,2364.3,1.39663226]
[1773698652093,7.31175509,2365.7,2364.5,1.50884226]
[1773698652286,7.31175509,2366.4,2364.9,1.49749117]
[1773698652687,7.31492826,2366.4,2365.1,1.49292523]
[1773698652886,7.31492826,2366.4,2365.3,1.38512523]
[1773698653292,7.31492826,2366.4,2365.5,1.3752553]
[1773698654890,7.31492826,2366.4,2365.7,1.46624001]
[1773698655193,7.31175509,2366.6,2365.9,1.45612229]
[1773698655392,8.431,2367.4,2365.9,1.45612229]
[1773698655393,7.31175509,2367.3,2365.9,1.45612229]
[1773698655585,7.31175509,2367.6,2366.3,1.41333063]
[1773698655789,8.83264736,2368.4,2366.5,1.41333063]
[1773698655790,7.31175509,2367.4,2366.5,1.41333063]
[1773698655985,7.31718183,2367.4,2366.5,1.41333063]
[1773698656184,7.31718183,2367.4,2366.3,6.20497467]
[1773698656396,7.31718183,2367.4,2366.1,1.40346913]
[1773698656791,7.31718183,2367.4,2366.2,4.80150554]
[1773698656998,7.31718183,2367.4,2366.0,1.45142568]
[1773698657191,7.31718183,2367.4,2364.9,5.84225669]
[1773698657397,7.31175509,2367.2,2364.9,5.84225669]
[1773698657597,7.31175509,2367.2,2365.3,5.7982542]
[1773698657792,7.31175509,2367.2,2365.5,5.7982542]
[1773698658193,7.31175509,2367.2,2365.7,5.78823904]
[1773698658794,7.31175509,2367.2,2365.5,5.91251094]
[1773698660899,7.31175509,2367.2,2365.6,4.70605981]
[1773698661095,7.31175509,2367.2,2365.7,6.49681031]
[1773698661422,7.31175509,2367.2,2365.5,6.48584799]
[1773698664696,3.69647792,2368.3,2367.3,5.80704594]
[1773698664897,17.3289053,2371.2,2366.7,8.45015]
[1773698664898,7.09551058,2368.9,2367.8,4.20393544]
[1773698665500,7.09551058,2368.8,2367.8,4.20393544]
[1773698665800,7.09920044,2368.8,2367.8,4.20835707]
[1773698666202,0.00368986,2368.8,2368.0,5.18163798]
[1773698666603,7.09551058,2369.8,2368.4,5.20911613]
[1773698666795,7.09551058,2369.8,2368.5,5.20911613]
[1773698666994,7.09551058,2369.8,2368.5,4.80878514]
[1773698667298,7.09551058,2369.6,2368.6,5.20911613]
[1773698667505,0.00348185,2369.6,2368.6,5.20911613]
[1773698667704,7.09551058,2370.3,2368.8,5.21958902]
[1773698667999,8.75505387,2372.8,2368.8,5.21958902]
[1773698668000,7.09551058,2371.1,2369.2,4.61318573]
[1773698668203,7.09551058,2371.1,2369.4,4.61318573]
[1773698668699,7.09551058,2370.9,2369.6,4.65590128]
[1773698668904,7.09551058,2370.9,2369.6,4.65984203]
[1773698669101,7.09551058,2370.6,2369.6,4.65984203]
[1773698669300,7.09551058,2370.6,2369.8,4.68490485]
[1773698669601,7.09551058,2371.0,2370.0,4.68671478]
[1773698669904,7.09551058,2371.0,2370.2,4.68671478]
[1773698670702,7.09551058,2371.0,2369.7,4.73397489]
[1773698670900,7.09551058,2371.0,2369.9,4.73397489]
[1773698671096,0.00484634,2371.1,2370.0,4.73397489]
[1773698671505,7.09551058,2371.3,2370.2,4.72063896]
[1773698672002,7.09551058,2371.9,2370.4,4.67548812]
[1773698672405,6.3384,2371.8,2370.6,4.66219573]
[1773698672609,7.09551058,2374.1,2371.9,4.65119691]
[1773698672809,7.09551058,2374.1,2372.1,4.65119691]
[1773698673207,8.402,2374.0,2372.1,4.65119691]
[1773698673402,7.09551058,2373.9,2372.1,4.65119691]
[1773698673605,7.10040994,2373.9,2372.2,4.48236639]
[1773698673910,7.10040994,2373.9,2372.3,4.68957612]
[1773698674307,7.10040994,2373.9,2372.9,5.11978738]
[1773698674508,7.10040994,2373.9,2372.5,5.11978738]
[1773698674708,7.10040994,2373.9,2372.6,5.14966574]
[1773698675007,7.10040994,2373.9,2372.7,6.841]
[1773698675208,7.10040994,2373.9,2372.8,5.13514373]
[1773698675503,0.00489936,2373.9,2373.0,5.13514373]